bitfinex/quotes_ETHUSD_20250106
["timestamp","ask_amount","ask_price","bid_price","bid_amount"]
[1736136527477,0.8114,3665.6,3665.1,35.11992193]
[1736136528225,1.95310734,3665.6,3665.1,35.11992193]
[1736136529224,0.93458181,3665.5,3665.1,35.11992193]
[1736136530497,2.33656387,3665.5,3665.1,35.11992193]
[1736136534133,0.7599,3665.4,3665.1,35.11992193]
[1736136534445,0.7599,3665.4,3665.1,0.11992193]
[1736136534796,0.7599,3665.4,3664.5,1.13608527]
[1736136534997,0.7599,3665.4,3664.6,35.0]
[1736136535299,0.7599,3665.4,3664.6,35.11992644]
[1736136535513,0.48383944,3665.3,3664.6,35.11992644]
[1736136536354,1.14170734,3665.0,3664.6,35.11992644]
[1736136537027,1.14170734,3665.0,3664.6,37.57584644]
[1736136541764,12.10170734,3665.0,3664.6,37.57584644]
[1736136543060,12.10170734,3665.0,3664.9,3.00572]
[1736136543633,12.10170734,3665.0,3664.9,3.12574977]
[1736136543827,12.10170734,3665.0,3664.9,5.84332569]
[1736136544135,12.10170734,3665.0,3664.9,9.26782569]
[1736136544864,12.10170734,3665.0,3664.9,6.55024977]
[1736136545072,10.96,3665.0,3664.9,41.55024977]
[1736136546771,10.96,3665.0,3664.9,43.9139582]
[1736136549943,10.96,3665.0,3664.9,40.4894582]
[1736136550876,10.96,3665.0,3664.9,39.07123314]
[1736136552582,10.96,3665.0,3664.9,38.12574977]
[1736136559180,10.96,3665.0,3664.9,37.57574977]
[1736136561079,10.96,3665.0,3664.9,38.7556477]
[1736136567997,10.96,3665.0,3664.9,39.3056477]
[1736136568285,10.96,3665.0,3664.9,42.02322362]
[1736136570582,10.96,3665.0,3664.9,42.44772362]
[1736136570784,10.96,3665.0,3664.9,46.62762155]
[1736136571886,10.96,3665.0,3664.9,45.44772362]
[1736136572459,10.96,3665.0,3664.9,45.99749849]
[1736136573386,10.96,3665.0,3664.9,51.9597781]
[1736136573994,10.96,3665.0,3664.9,53.13967603]
[1736136574404,10.96,3665.0,3664.9,51.9597781]
[1736136574606,10.96,3665.0,3664.9,48.36313832]
[1736136574993,10.96,3665.0,3664.9,49.54303625]
[1736136575402,9.59574,3665.0,3664.9,49.54303625]
[1736136575607,1.14170734,3666.1,3666.0,2.45499]
[1736136575781,1.14170734,3666.1,3666.0,5.36478586]
[1736136576104,1.14170734,3666.1,3666.0,8.48384345]
[1736136576313,1.14170734,3666.1,3666.0,45.00224179]
[1736136576668,1.14170734,3666.1,3666.0,43.82234386]
[1736136577082,1.14170734,3666.1,3666.0,45.25462953]
[1736136578109,0.93007097,3667.0,3666.3,2.45473]
[1736136578273,0.93007097,3667.0,3666.5,0.55]
[1736136578474,0.93007097,3667.0,3666.6,0.11875258]
[1736136578986,0.7624,3666.9,3666.7,35.0]
[1736136579384,0.7624,3666.9,3666.8,0.11869051]
[1736136579807,0.7624,3666.9,3666.5,0.55]
[1736136580004,0.7624,3666.9,3666.8,0.11869051]
[1736136580174,0.7624,3666.9,3666.6,35.0]
[1736136580374,0.7624,3666.9,3666.8,0.11869051]
[1736136580910,0.7624,3666.9,3666.6,35.0]
[1736136581218,0.7624,3666.9,3666.7,0.11872155]
[1736136582770,0.7624,3666.9,3666.7,35.0]
[1736136583012,0.7624,3666.9,3666.8,0.11869051]
[1736136583312,0.7624,3666.9,3666.7,35.0]
[1736136583472,0.7624,3666.9,3666.8,0.11869051]
[1736136583680,0.7624,3666.9,3665.9,2.45503]
[1736136583986,0.7609,3666.7,3666.0,0.11872416]
[1736136584181,0.7609,3666.7,3666.1,35.0]
[1736136584578,0.7609,3666.7,3666.2,0.11866208]
[1736136585187,0.7609,3666.7,3666.3,35.0]
[1736136585387,0.7609,3666.7,3666.3,35.11844374]
[1736136585615,0.8181,3666.5,3666.3,35.11844374]
[1736136585773,1.36208078,3666.5,3666.3,35.11844374]
[1736136585975,0.8181,3666.4,3666.3,35.11844374]
[1736136588715,0.81481597,3666.4,3666.3,35.11844374]
[1736136589416,1.73431747,3666.4,3666.3,35.11844374]
[1736136589715,2.5366048,3666.4,3666.3,35.11844374]
[1736136592079,2.5366048,3666.4,3666.3,0.11844374]
[1736136592313,2.5366048,3666.4,3665.4,2.45535]
[1736136592691,2.5366048,3666.4,3665.5,35.11869211]
[1736136593311,1.6171033,3666.4,3665.5,35.11869211]
[1736136593479,0.81481597,3666.4,3665.5,35.11869211]
[1736136594115,0.81481597,3666.4,3665.5,37.57401211]
[1736136594808,0.81481597,3666.4,3665.7,2.45515]
[1736136595010,0.81481597,3666.4,3665.7,2.88295]
[1736136595194,0.81481597,3666.4,3665.8,0.11859896]
[1736136595389,0.81481597,3666.4,3666.0,35.0]
[1736136595823,0.81481597,3666.4,3666.1,0.11850582]
[1736136596500,1.14170734,3666.6,3666.1,0.11850582]
[1736136597411,0.8321,3666.7,3666.1,0.11850582]
[1736136599507,0.8321,3666.7,3666.2,35.0]
[1736136599683,0.8321,3666.7,3666.2,35.11884018]
[1736136600881,1.08315068,3666.7,3666.2,0.11884018]
[1736136601108,0.7579,3666.6,3666.2,0.11884018]
[1736136601306,0.7579,3666.6,3665.8,0.55]
[1736136601509,0.7579,3666.6,3665.9,35.0]
[1736136601817,0.7579,3666.6,3665.9,35.11884652]
[1736136601996,0.7579,3666.6,3665.9,37.57388652]
[1736136603332,0.7579,3666.6,3666.0,2.45494]
[1736136603481,1.89380734,3666.9,3666.2,0.55]
[1736136603684,1.14170734,3666.9,3666.6,2.88238]
[1736136603994,1.14170734,3666.9,3666.7,37.5731182]
[1736136605847,3.03662116,3667.3,3666.7,37.5731182]
[1736136606017,1.14170734,3667.5,3667.2,5.0663636]
[1736136606523,1.14170734,3667.5,3667.3,0.1177042]
[1736136606824,1.14170734,3667.9,3667.3,2.45411]
[1736136607053,1.14170734,3667.9,3667.4,2.99950318]
[1736136608324,2.46466102,3668.1,3667.4,0.54547318]
[1736136608325,0.7521,3668.1,3667.4,0.54547318]
[1736136610124,0.7521,3668.1,3667.5,0.55]
[1736136610333,0.7521,3668.1,3667.5,3.00397]
[1736136610494,0.7521,3668.1,3667.6,0.11761114]
[1736136610697,1.14170734,3668.3,3667.7,0.55]
[1736136610915,1.14170734,3668.3,3667.8,0.11754911]
[1736136611250,1.94100734,3668.4,3667.8,0.11754911]
[1736136611948,1.14170734,3668.4,3668.0,3.00365]
[1736136612331,1.14170734,3668.4,3668.2,0.55]
[1736136612519,3.03482116,3668.8,3668.2,0.55]
[1736136612520,1.14170734,3668.5,3668.2,0.55]
[1736136612848,1.14170734,3668.5,3668.4,0.9778]
[1736136613257,1.14170734,3668.5,3668.4,1.09477048]
[1736136614155,0.625,3669.0,3668.4,1.09477048]
[1736136616013,0.625,3669.0,3668.4,3.54814048]
[1736136616219,0.625,3669.0,3668.5,0.39030201]
[1736136616828,0.625,3669.0,3668.6,0.11690848]
[1736136619041,0.625,3669.0,3668.7,0.4278]
[1736136619449,0.625,3669.0,3668.8,0.11616644]
[1736136619878,0.625,3669.0,3668.7,0.4278]
[1736136620021,0.625,3669.0,3668.9,0.11613545]
[1736136620220,0.625,3669.0,3668.8,0.11616644]
[1736136620443,0.625,3669.0,3668.9,0.11613545]
[1736136621218,0.625,3669.0,3668.7,0.4278]
[1736136621424,0.625,3669.0,3668.9,0.11613545]
[1736136621626,0.625,3669.0,3668.8,0.44329764]
[1736136621865,0.625,3669.0,3668.9,0.11613545]
[1736136622634,0.625,3669.0,3668.8,0.55]
[1736136622836,0.625,3669.0,3668.9,0.11613545]
[1736136626182,0.625,3669.0,3668.5,2.84361201]
[1736136626382,0.625,3669.0,3668.9,0.11613545]
[1736136626552,0.625,3669.0,3668.5,2.84361201]
[1736136626897,0.625,3669.0,3668.6,0.3271412]
[1736136627098,0.625,3669.0,3668.6,0.44336964]
[1736136628082,0.625,3669.0,3668.6,0.11622844]
[1736136629982,0.625,3669.0,3668.7,35.0]
[1736136630298,0.625,3669.0,3668.8,0.11611168]
[1736136630651,0.7726,3668.9,3668.5,0.39030201]
[1736136630851,0.7726,3668.9,3668.6,35.0]
[1736136633890,0.7726,3668.9,3668.2,2.45351]
[1736136634092,0.7726,3668.9,3668.1,0.4278]
[1736136634319,0.7726,3668.9,3667.8,0.4278]
[1736136634320,0.8138,3668.8,3667.8,0.4278]
[1736136634485,0.8138,3668.8,3668.2,35.1482359]
[1736136634673,0.8138,3668.8,3668.2,35.0]
[1736136635005,0.8138,3668.8,3668.3,0.14820402]
[1736136635308,0.8138,3668.8,3668.2,35.0]
[1736136635504,0.8138,3668.7,3668.4,0.14817213]
[1736136635665,0.8138,3668.7,3668.2,35.0]
[1736136635864,0.8138,3668.7,3668.5,0.14814025]
[1736136636172,0.625,3669.0,3668.3,6.00343]
[1736136636480,1.14170734,3669.8,3669.7,2.45251]
[1736136637005,1.14170734,3669.8,3669.7,38.149985]
[1736136637814,1.14170734,3670.7,3669.8,0.55]
[1736136638104,1.14170734,3670.7,3670.4,2.45204]
[1736136638277,1.14170734,3670.7,3670.0,0.55]
[1736136638278,1.14170734,3670.7,3670.5,2.45196]
[1736136638484,1.14170734,3670.7,3670.5,2.59918017]
[1736136639370,0.7732,3671.1,3670.5,2.59918017]
[1736136639605,0.7732,3671.1,3670.6,35.0]
[1736136639910,0.7732,3671.1,3670.7,0.14640888]
[1736136640418,0.8149,3671.8,3670.7,0.14640888]
[1736136640603,0.38186706,3671.7,3670.8,35.0]
[1736136640774,0.38186706,3671.7,3670.9,0.1463452]
[1736136641534,0.38186706,3671.7,3670.7,35.0]
[1736136641694,0.8226,3671.6,3671.0,0.14033379]
[1736136642020,0.8226,3671.6,3671.1,0.14030195]
[1736136642240,0.36556171,3671.5,3670.7,35.0]
[1736136642419,0.36556171,3671.5,3671.2,0.14027012]
[1736136642622,0.36556171,3671.5,3670.7,35.0]
[1736136642913,0.36556171,3671.5,3670.8,0.14039747]
[1736136643905,0.36556171,3671.5,3670.6,0.55]
[1736136644113,0.8226,3671.6,3670.9,0.14036563]
[1736136644310,0.8226,3671.6,3670.8,2.45175]
[1736136644498,0.8226,3671.6,3671.0,0.14033379]
[1736136644701,0.8226,3671.6,3670.8,2.45175]
[1736136644898,0.8226,3671.6,3670.6,38.0019]
[1736136645509,0.8226,3671.6,3670.8,0.55]
[1736136645880,0.8226,3671.6,3670.9,0.14036563]
[1736136647289,2.45133,3671.5,3670.9,0.14036563]
[1736136648022,0.7737,3671.4,3671.0,0.14033379]
[1736136648181,0.7737,3671.1,3669.9,0.4278]
[1736136648379,0.7737,3671.1,3670.0,2.59303494]
[1736136648576,0.7737,3671.1,3670.2,0.55]
[1736136648781,0.7737,3671.1,3670.3,0.14062938]
[1736136649004,0.7737,3671.1,3670.0,2.45231]
[1736136649218,0.7737,3671.1,3670.2,0.55]
[1736136649427,0.7737,3671.1,3670.4,0.55]
[1736136649582,0.7737,3671.1,3670.5,0.14056568]
[1736136650427,0.7737,3671.1,3670.6,35.0]
[1736136650593,0.7737,3671.1,3670.7,0.14050199]
[1736136651220,3.60107234,3671.1,3670.7,0.14050199]
[1736136651804,0.7988,3671.0,3670.7,0.14050199]
[1736136652024,3.25045,3671.0,3669.9,0.4278]
[1736136652187,0.7988,3671.0,3670.0,35.14072494]
[1736136653038,0.7988,3671.0,3670.1,0.55]
[1736136653242,0.7988,3671.0,3670.4,0.4278]
[1736136653544,0.7555,3671.6,3670.6,0.55]
[1736136654048,2.45138,3671.4,3670.7,0.14092904]
[1736136654212,2.45138,3671.4,3670.4,0.4278]
[1736136654413,2.45138,3671.4,3670.5,0.14077012]
[1736136654644,2.772068,3671.4,3670.8,35.0]
[1736136654858,2.772068,3671.4,3670.9,0.14064275]
[1736136655635,0.7787,3671.3,3670.9,0.14064275]
[1736136655837,0.6287,3671.3,3670.9,0.14064275]
[1736136656861,3.08016,3671.3,3670.9,0.14064275]
[1736136657084,2.759536,3671.2,3670.9,0.14064275]
[1736136657286,0.308016,3671.2,3670.9,0.14064275]
[1736136657428,2.45164,3671.0,3670.9,0.14064275]
[1736136657852,2.6121836,3671.3,3669.8,0.5778]
[1736136658166,2.45172,3670.9,3670.0,35.0]
[1736136658534,2.45172,3670.9,3670.1,0.14098383]
[1736136658959,0.82,3670.8,3670.1,0.14098383]
[1736136660397,0.327172,3670.7,3670.1,0.14098383]
[1736136660685,2.45199,3670.5,3670.1,0.14098383]
[1736136660838,0.8048,3670.4,3670.1,0.14098383]
[1736136661693,0.8048,3670.8,3670.1,0.14098383]
[1736136661901,0.8048,3670.8,3670.1,0.71878383]
[1736136662078,0.8048,3670.8,3670.1,0.5778]
[1736136662248,0.8048,3670.8,3670.2,35.14106556]
[1736136662447,0.796,3671.4,3670.3,0.55]
[1736136662698,0.796,3671.4,3670.5,0.55]
[1736136662875,0.796,3671.4,3670.6,0.5778]
[1736136663087,0.796,3671.4,3670.8,35.0]
[1736136663461,0.796,3671.4,3670.9,0.14072907]
[1736136665083,2.45158,3671.1,3670.9,0.14072907]
[1736136665591,2.45164,3671.0,3670.9,0.13998527]
[1736136665757,2.45164,3671.0,3670.3,35.0]
[1736136665957,3.24751,3671.2,3670.3,35.0]
[1736136666186,3.24751,3671.2,3670.4,0.14067271]
[1736136666589,3.24751,3671.2,3670.5,0.5778]
[1736136666590,0.796,3671.2,3670.5,0.5778]
[1736136667092,0.798,3671.4,3670.6,0.140768]
[1736136669799,0.798,3671.4,3670.7,35.0]
[1736136670018,0.798,3671.4,3670.8,0.14070432]
[1736136671079,0.8164,3671.6,3670.8,0.14070432]
[1736136671515,3.26771,3671.6,3670.8,0.14070432]
[1736136672482,2.45131,3671.6,3670.9,0.5778]
[1736136672904,2.45131,3671.6,3671.0,0.14064064]
[1736136673868,0.8109,3671.5,3671.0,0.14064064]
[1736136674486,0.8109,3671.5,3670.9,0.5778]
[1736136674695,0.8109,3671.5,3671.1,0.14044523]
[1736136674924,0.8109,3671.5,3671.0,0.14047707]
[1736136675133,0.8109,3671.5,3671.2,0.1404134]
[1736136675320,0.8109,3671.5,3671.1,0.14044523]
[1736136675499,0.8109,3671.5,3671.3,0.14038157]
[1736136675700,0.8109,3671.5,3671.2,0.1404134]
[1736136675918,0.8109,3671.5,3670.9,0.5778]
[1736136676633,0.8109,3671.5,3670.3,2.45205]
[1736136676817,1.137116,3671.5,3670.4,1.1278]
[1736136677019,3.588486,3671.5,3670.4,1.26846813]
[1736136678737,2.45145,3671.3,3670.4,0.71846813]
[1736136678936,0.7517,3671.4,3670.4,0.14066813]
[1736136679237,0.48318069,3671.3,3670.4,0.14066813]
[1736136679538,0.48318069,3671.3,3670.1,0.5778]
[1736136679925,0.48318069,3671.3,3670.2,0.14067277]
[1736136680322,2.93464069,3671.3,3670.2,0.14067277]
[1736136680727,3.43684183,3671.2,3670.2,0.14067277]
[1736136681044,4.35303778,3671.2,3670.2,0.14067277]
[1736136681245,6.80454778,3671.2,3670.2,0.14067277]
[1736136681802,5.42718961,3671.2,3670.2,0.14067277]
[1736136683239,1.14170734,3670.8,3670.2,0.14067277]
[1736136684238,1.14170734,3670.8,3670.2,2.59281277]
[1736136684445,1.14170734,3670.8,3670.3,0.83708128]
[1736136684644,1.14170734,3670.8,3670.4,0.1406863]
[1736136684956,0.04170734,3670.8,3670.4,0.5778]
[1736136685118,0.04170734,3670.8,3670.6,0.5778]
[1736136685442,1.38137799,3670.7,3670.6,3.57971]
[1736136685635,1.38137799,3670.7,3670.6,4.49889936]
[1736136685856,1.38137799,3670.7,3670.6,10.11108296]
[1736136686036,5.33e-06,3670.8,3670.7,6.00184]
[1736136686215,5.33e-06,3670.8,3670.7,6.57964]
[1736136686956,1.71256102,3671.6,3670.7,3.55]
[1736136687158,1.71256102,3671.6,3671.5,3.57911]
[1736136688526,1.71256102,3672.4,3671.7,0.5778]
[1736136688727,1.71256102,3672.4,3672.3,0.5778]
[1736136689248,1.71256102,3672.4,3672.3,4.1278]
[1736136689447,1.71256102,3672.4,3672.3,4.840664]
[1736136690010,1.71256102,3673.2,3672.4,0.55]
[1736136691198,0.005,3673.4,3672.4,0.55]
[1736136694485,0.005,3673.4,3672.5,0.13921424]
[1736136694663,0.250491,3673.4,3672.5,0.13921424]
[1736136695970,0.7878,3673.0,3672.5,0.13921424]
[1736136696172,0.7878,3673.0,3671.9,0.5778]
[1736136696173,3.23811,3673.0,3671.9,0.5778]
[1736136696575,0.7878,3673.0,3672.0,0.12956563]
[1736136697793,0.7878,3673.0,3672.0,2.58053563]
[1736136698295,0.7878,3673.0,3672.0,0.12956563]
[1736136698296,1.111599,3673.0,3672.0,0.12956563]
[1736136698504,0.7878,3673.0,3672.0,0.12956563]
[1736136699362,3.23812,3673.0,3672.0,0.12956563]
[1736136702566,5.0628936,3672.4,3672.0,0.12956563]
[1736136702995,5.0628936,3672.4,3671.2,3.59453277]
[1736136702996,3.20919,3672.3,3671.2,1.14303277]
[1736136703378,3.20919,3672.3,3671.3,0.12607222]
[1736136704302,2.45084,3672.2,3671.3,0.12607222]
[1736136705308,1.34053736,3672.3,3671.3,0.12607222]
[1736136705606,3.79131736,3672.3,3671.3,0.12607222]
[1736136706386,1.34053736,3672.3,3671.3,0.12607222]
[1736136706603,0.7584,3672.3,3671.3,0.12607222]
[1736136706980,0.7584,3672.3,3671.5,0.5778]
[1736136707370,0.7584,3672.3,3671.6,0.12597673]
[1736136708114,3.20918,3672.3,3671.6,0.12597673]
[1736136708923,2.45094,3672.1,3671.6,0.12597673]
[1736136709228,0.320934,3672.0,3671.6,0.12597673]
[1736136709370,0.320934,3672.0,3671.2,1.72083277]
[1736136709570,0.320934,3672.0,3671.7,0.1259449]
[1736136709800,2.771914,3672.0,3671.2,1.72083277]
[1736136710004,2.45104,3671.9,3671.8,0.12591308]
[1736136710211,2.7282314,3671.9,3671.2,1.72083277]
[1736136710811,2.7282314,3671.9,3671.3,0.12607222]
[1736136710979,2.45118,3671.7,3671.3,0.12607222]
[1736136711178,3.21598,3671.7,3671.3,0.12607222]
[1736136711393,0.6105355,3671.6,3671.2,1.14303277]
[1736136711574,0.6105355,3671.6,3671.4,0.12604039]
[1736136711775,0.6105355,3671.6,3671.3,0.12607222]
[1736136711975,0.6105355,3671.6,3671.5,0.12600856]
[1736136712176,0.2771914,3671.9,3671.4,0.12604039]
[1736136712376,0.2771914,3671.9,3671.5,0.12600856]
[1736136712713,0.2771914,3671.9,3671.2,1.14303277]
[1736136712910,0.2771914,3671.9,3671.6,0.12597673]
[1736136713109,0.7648,3672.0,3671.3,0.5778]
[1736136713317,0.7648,3672.1,3671.7,0.1259449]
[1736136713610,0.7648,3672.1,3671.3,0.5778]
[1736136713772,3.3769836,3672.1,3671.8,0.12591308]
[1736136713972,3.3769836,3672.1,3671.3,0.5778]
[1736136713973,2.45106,3671.9,3671.3,0.5778]
[1736136714381,2.45106,3671.9,3671.4,0.12604039]
[1736136714678,2.45106,3671.9,3671.3,0.5778]
[1736136716308,5.8279036,3672.1,3671.3,0.5778]
[1736136716483,3.37202384,3672.1,3671.3,0.5778]
[1736136716823,1.13764899,3672.2,3671.3,0.5778]
[1736136718016,3.58852899,3672.2,3671.3,0.5778]
[1736136718180,2.45088,3672.2,3671.3,0.5778]
[1736136719195,0.53292483,3672.3,3671.3,0.5778]
[1736136719420,2.45095,3672.1,3671.3,0.5778]
[1736136719979,2.45104,3671.9,3671.3,0.5778]
[1736136720523,2.45104,3671.9,3671.4,0.12280494]
[1736136721014,2.45104,3671.9,3671.3,0.5778]
[1736136721326,2.45104,3671.9,3671.4,0.12280494]
[1736136721815,2.45104,3671.9,3671.3,0.5778]
[1736136722220,2.45104,3671.9,3671.4,0.12280494]
[1736136722425,2.77107607,3671.9,3671.4,0.12280494]
[1736136722582,2.77107607,3671.9,3671.3,0.5778]
[1736136722987,2.77107607,3671.9,3671.4,0.12280494]
[1736136723188,2.77107607,3671.9,3671.3,0.5778]
[1736136724315,2.45104,3671.9,3671.3,0.5778]
[1736136724705,2.45104,3671.9,3671.4,0.12280494]
[1736136725045,2.45104,3671.9,3671.3,0.5778]
[1736136725207,2.45104,3671.9,3671.4,0.12280494]
[1736136725408,0.74932074,3672.1,3671.4,0.12280494]
[1736136725707,0.74932074,3672.1,3671.3,0.5778]
[1736136726124,0.24198946,3672.0,3671.3,0.5778]
[1736136726464,2.45106,3671.9,3671.3,0.5778]
[1736136727225,2.45087,3672.2,3671.3,0.5778]
[1736136727447,2.45091,3672.1,3671.3,0.5778]
[1736136728140,2.27801058,3672.0,3671.3,0.5778]
[1736136729234,2.27801058,3672.0,3671.4,0.55]
[1736136729433,0.91120423,3672.0,3671.5,0.5778]
[1736136729741,0.91120423,3672.0,3671.6,0.11864341]
[1736136730257,0.91120423,3672.0,3671.5,0.5778]
[1736136730453,1.13764899,3672.2,3671.5,0.5778]
[1736136730950,2.45093,3672.1,3671.5,0.5778]
[1736136731135,2.45098,3672.0,3671.5,0.5778]
[1736136731653,4.17404356,3672.2,3671.5,0.5778]
[1736136732013,2.45092,3672.1,3671.5,0.5778]
[1736136732657,5.86701587,3672.1,3671.5,0.5778]
[1736136733255,3.41609587,3672.1,3671.5,0.5778]
[1736136733754,1.13764899,3672.2,3671.6,0.5778]
[1736136734141,1.13764899,3672.2,3671.7,0.11861158]
[1736136734452,1.13764899,3672.2,3671.8,0.5778]
[1736136734655,2.50521487,3672.3,3671.9,0.11854793]
[1736136734990,2.50521487,3672.3,3671.8,0.5778]
[1736136735720,3.41692546,3672.4,3671.8,0.5778]
[1736136736421,3.41692546,3672.4,3672.0,0.5778]
[1736136736660,3.41692546,3672.4,3672.1,0.11827255]
[1736136737333,2.45083,3672.3,3671.1,0.5778]
[1736136737859,2.45083,3672.3,3671.4,0.55]
[1736136738226,2.45083,3672.3,3671.5,0.1184635]
[1736136738871,3.41692546,3672.2,3671.5,0.1184635]
[1736136739228,3.4081728,3672.2,3671.5,0.1184635]
[1736136739978,3.4081728,3672.2,3671.6,0.5778]
[1736136740269,2.27927647,3672.1,3671.7,0.11839984]
[1736136740561,2.27927647,3672.1,3671.6,0.5778]
[1736136741570,3.99183749,3672.2,3671.6,0.5778]
[1736136742073,3.99183749,3672.2,3671.7,0.11839984]
[1736136742297,3.99183749,3672.2,3671.6,0.5778]
[1736136742566,3.99183749,3672.2,3671.7,0.11839984]
[1736136742775,2.62427161,3672.1,3671.7,0.11839984]
[1736136743074,2.62427161,3672.1,3671.6,0.5778]
[1736136743366,2.62427161,3672.1,3671.7,0.11839984]
[1736136743772,2.62427161,3672.1,3671.6,0.5778]
[1736136744169,0.91171059,3672.1,3671.6,0.5778]
[1736136744548,0.91171059,3672.1,3671.7,0.11839984]
[1736136744955,0.91171059,3672.1,3671.6,0.5778]
[1736136745391,2.62427161,3672.1,3671.7,0.11839984]
[1736136747405,3.6794913,3672.1,3671.7,0.11839984]
[1736136747863,3.6794913,3672.1,3671.6,0.5778]
[1736136747864,0.91171059,3672.0,3671.6,0.5778]
[1736136748046,0.91171059,3672.0,3671.7,0.11843138]
[1736136748245,0.91171059,3672.0,3671.6,0.5778]
[1736136748749,0.91171059,3671.9,3671.6,0.5778]
[1736136749195,0.91171059,3671.9,3671.7,0.11843138]
[1736136749798,2.05468933,3671.8,3671.6,0.5778]
[1736136750296,2.05468933,3671.8,3671.7,0.11843138]
[1736136750456,2.05468933,3671.8,3671.7,35.0]
[1736136750655,2.05468933,3671.8,3671.7,35.11843138]
[1736136751051,1.14297874,3671.8,3671.7,35.11843138]
[1736136751964,2.51054462,3671.8,3671.7,35.11843138]
[1736136753267,2.05468933,3671.8,3671.7,35.11843138]
[1736136754910,1.14297874,3671.8,3671.7,35.11843138]
[1736136756174,3.42225521,3671.8,3671.7,35.11843138]
[1736136757536,2.05468933,3671.8,3671.7,35.11843138]
[1736136759111,1.14297874,3671.8,3671.7,35.11843138]
[1736136760505,2.27927647,3671.8,3671.7,35.11843138]
[1736136762128,0.91171059,3671.8,3671.7,35.11843138]
[1736136764539,2.27927647,3671.8,3671.7,35.11843138]
[1736136765638,2.27599888,3671.8,3671.7,35.11843138]
[1736136767212,2.27599888,3671.8,3671.7,0.11843138]
[1736136767414,2.98020699,3671.8,3671.7,0.11843138]
[1736136767720,2.98020699,3671.8,3671.3,35.0]
[1736136767924,2.27599888,3671.8,3671.4,0.11864849]
[1736136768308,2.27599888,3671.8,3671.2,0.5778]
[1736136768515,4.72710888,3671.8,3671.3,0.11868033]
[1736136768834,2.45119,3671.7,3671.4,35.0]
[1736136769023,2.45119,3671.7,3671.4,35.11864849]
[1736136769222,1.71256102,3671.6,3671.4,35.11864849]
[1736136770701,3.0801269,3671.5,3671.4,35.11864849]
[1736136772137,3.0801269,3671.6,3671.4,35.11864849]
[1736136773017,1.36756588,3671.5,3671.4,35.11864849]
[1736136777216,6.24730132,3671.5,3671.4,0.11864849]
[1736136777633,6.24730132,3671.5,3670.7,0.5778]
[1736136777806,1.17624195,3671.3,3670.7,0.5778]
[1736136778140,6.78362039,3671.5,3670.8,0.11168105]
[1736136778446,1.17624195,3671.4,3670.8,0.11168105]
[1736136778646,1.17624195,3671.4,3670.9,35.0]
[1736136779040,6.3553369,3671.5,3671.1,0.5778]
[1736136779041,3.0801269,3671.5,3671.1,0.5778]
[1736136779346,1.71256102,3671.2,3671.1,0.5778]
[1736136779520,1.71256102,3671.2,3671.1,35.5778]
[1736136780040,2.28452116,3671.4,3671.3,0.5778]
[1736136780290,2.98924769,3671.9,3671.8,8.9313939]
[1736136780452,2.28346336,3672.6,3672.5,3.57844]
[1736136780657,2.28346336,3672.6,3672.5,42.75468195]
[1736136781867,0.005,3673.4,3672.6,3.55]
[1736136782074,0.005,3673.4,3673.0,1.72624195]
[1736136782797,0.005,3673.4,3673.1,37.35635395]
[1736136784084,0.005,3673.4,3673.1,35.0]
[1736136784499,0.005,3673.4,3673.2,0.11063933]
[1736136784998,0.005,3673.4,3673.0,0.55]
[1736136785203,0.005,3673.4,3673.3,1.23840753]
[1736136785401,0.005,3673.4,3673.3,6.73089705]
[1736136785703,0.005,3673.4,3673.3,6.84150458]
[1736136785902,0.005,3673.4,3673.3,41.84150458]
[1736136787518,0.005,3673.4,3673.3,44.18619471]
[1736136787693,0.8267,3674.8,3673.7,2.44983]
[1736136787890,0.8267,3674.8,3673.9,0.55]
[1736136788095,0.8267,3674.8,3674.0,0.108664]
[1736136788493,0.8267,3674.8,3674.1,0.55]
[1736136788800,0.7553,3675.1,3674.2,0.10860043]
[1736136789567,0.7553,3675.1,3674.3,0.55]
[1736136790083,0.7553,3675.1,3674.4,0.10852344]
[1736136790285,0.7553,3675.1,3674.4,35.10852344]
[1736136792086,3.20413,3675.3,3674.4,35.10852344]
[1736136792282,0.7553,3675.3,3674.4,35.10852344]
[1736136792482,0.7553,3675.3,3674.4,36.0876964]
[1736136795709,3.20408,3675.3,3674.4,36.0876964]
[1736136796103,2.44886,3675.2,3674.4,36.0876964]
[1736136796300,0.7553,3675.3,3674.4,35.10852344]
[1736136796679,2.44919,3674.7,3674.4,35.10852344]
[1736136797008,3.26315,3674.6,3674.4,35.10852344]
[1736136797833,2.44858,3675.6,3674.4,35.10852344]
[1736136798038,0.8206,3675.3,3674.4,36.23632344]
[1736136798378,2.44892,3675.1,3674.4,36.23632344]
[1736136800019,0.8206,3675.3,3674.4,36.23632344]
[1736136800308,2.44856,3675.7,3674.4,39.23632344]
[1736136800511,2.44862,3675.6,3674.4,39.23632344]
[1736136800711,2.44873,3675.4,3674.4,39.23632344]
[1736136802101,2.4488,3675.3,3674.4,39.23632344]
[1736136802758,2.44864,3675.6,3674.4,39.23632344]
[1736136802939,2.44868,3675.5,3674.4,39.23632344]
[1736136803101,2.44872,3675.4,3674.4,39.23632344]
[1736136807907,2.44872,3675.4,3674.5,3.55]
[1736136808244,2.44872,3675.4,3674.7,0.55]
[1736136808538,2.44872,3675.4,3674.8,0.42038475]
[1736136808743,2.44851,3675.7,3674.8,0.10378391]
[1736136808946,2.44877,3675.4,3674.8,0.10378391]
[1736136811105,2.44851,3675.7,3674.8,0.10378391]
[1736136811306,0.7583,3675.7,3674.4,35.5778]
[1736136811511,0.7583,3675.6,3674.5,0.10366483]
[1736136811707,2.44884,3675.2,3674.5,0.65366483]
[1736136813445,0.7583,3675.6,3674.5,0.65366483]
[1736136813746,0.7583,3675.0,3674.5,0.65366483]
[1736136815164,3.20729,3675.0,3674.5,0.65366483]
[1736136816863,0.7583,3675.0,3674.5,0.10366483]
[1736136817211,2.44913,3674.8,3674.5,0.10366483]
[1736136817844,0.7583,3675.0,3674.5,0.10366483]
[1736136818051,2.44919,3674.7,3674.5,0.10366483]
[1736136818570,3.20524,3674.6,3674.5,0.10366483]